bitfinex-derivatives/quotes_BTCF0:USTF0_20250416
["timestamp","ask_amount","ask_price","bid_price","bid_amount"]
[1744771066488,0.13257155,83883.0,83882.0,0.1527232]
[1744771066691,0.09997155,83883.0,83882.0,0.1527232]
[1744771066891,0.09997155,83883.0,83882.0,0.1842232]
[1744771067806,0.15958315,83883.0,83882.0,0.1842232]
[1744771068897,0.15958315,83883.0,83882.0,0.1527232]
[1744771069097,0.19108315,83883.0,83882.0,0.1202232]
[1744771070200,0.19108315,83883.0,83882.0,0.001]
[1744771070592,0.19108315,83883.0,83882.0,0.1202246]
[1744771070900,0.19108315,83883.0,83882.0,0.1203046]
[1744771071495,0.19108315,83883.0,83882.0,0.00108]
[1744771071699,0.19108315,83883.0,83871.0,0.0001458]
[1744771071700,0.1192388,83872.0,83871.0,0.0001458]
[1744771071899,0.178866,83869.0,83868.0,0.1192441]
[1744771072301,0.178866,83869.0,83868.0,0.1844441]
[1744771072599,0.0596215,83869.0,83868.0,0.19329073]
[1744771072798,0.06898145,83869.0,83868.0,0.19329073]
[1744771072998,0.03965995,83869.0,83868.0,0.19329073]
[1744771073293,0.03965995,83869.0,83868.0,0.19629073]
[1744771073500,0.03965995,83869.0,83868.0,0.19729073]
[1744771073696,0.15890305,83869.0,83868.0,0.19729073]
[1744771074400,0.19080305,83869.0,83868.0,0.16499073]
[1744771074599,0.19080305,83869.0,83868.0,0.19741073]
[1744771074901,0.19080305,83869.0,83868.0,0.19749073]
[1744771078502,0.19080305,83869.0,83868.0,0.16499073]
[1744771079691,0.19080305,83869.0,83868.0,0.19619073]
[1744771080498,0.19080305,83869.0,83868.0,0.16499073]
[1744771080904,0.19080305,83869.0,83868.0,0.01284663]
[1744771081207,0.119253,83862.0,83861.0,0.0052355]
[1744771081407,0.119253,83862.0,83861.0,0.1244899]
[1744771081591,0.182153,83862.0,83861.0,0.1563899]
[1744771081794,0.182153,83862.0,83861.0,0.0051275]
[1744771081997,0.182153,83862.0,83861.0,0.01414573]
[1744771082208,0.182153,83862.0,83861.0,0.0051275]
[1744771082506,0.19151295,83862.0,83861.0,0.00047665]
[1744771082804,0.19151295,83862.0,83861.0,0.00439665]
[1744771083108,0.19151295,83862.0,83861.0,0.00447665]
[1744771083306,0.19151295,83862.0,83861.0,0.00608]
[1744771083598,0.1192672,83852.0,83851.0,0.1192687]
[1744771083999,0.1515672,83852.0,83851.0,0.1823687]
[1744771084192,0.1192715,83849.0,83848.0,0.360908]
[1744771084393,0.1192715,83849.0,83848.0,0.4801809]
[1744771084599,0.1834715,83849.0,83848.0,0.4801809]
[1744771084799,0.1515715,83849.0,83848.0,0.4801809]
[1744771084994,0.16093145,83849.0,83848.0,0.4801809]
[1744771085196,0.16093145,83849.0,83848.0,0.5108809]
[1744771085396,0.19283145,83849.0,83848.0,0.5108809]
[1744771085596,0.19283145,83849.0,83848.0,0.1529729]
[1744771085802,0.19283145,83849.0,83848.0,0.1223529]
[1744771085991,0.19283145,83849.0,83848.0,0.1273529]
[1744771086196,0.19283145,83849.0,83848.0,0.1272729]
[1744771086391,0.19283145,83849.0,83848.0,0.1273529]
[1744771086997,0.19283145,83849.0,83848.0,0.13652482]
[1744771087197,0.19283145,83849.0,83848.0,0.01725192]
[1744771087594,0.19283145,83849.0,83848.0,0.13644482]
[1744771087799,0.19283145,83849.0,83848.0,0.13652482]
[1744771088200,0.19283145,83849.0,83848.0,0.13352482]
[1744771088401,0.04165995,83849.0,83848.0,0.52852482]
[1744771088594,0.16093145,83849.0,83848.0,0.59182482]
[1744771088795,0.16093145,83849.0,83848.0,0.55912482]
[1744771089104,0.16093145,83849.0,83848.0,0.19824482]
[1744771089293,0.19103145,83849.0,83848.0,0.19832482]
[1744771090108,0.19103145,83849.0,83848.0,0.16764482]
[1744771090305,0.19103145,83849.0,83848.0,0.16772482]
[1744771090602,0.19103145,83849.0,83848.0,0.13452482]
[1744771090804,0.19103145,83849.0,83848.0,0.01525192]
[1744771091004,0.19103145,83849.0,83848.0,0.00608]
[1744771091203,0.19103145,83849.0,83848.0,0.006]
[1744771091408,0.19103145,83849.0,83848.0,0.00608]
[1744771092196,0.26959145,83849.0,83848.0,0.006]
[1744771092404,0.26959145,83849.0,83848.0,0.00608]
[1744771092604,0.26959145,83849.0,83848.0,0.004]
[1744771092909,0.26959145,83849.0,83848.0,0.00608]
[1744771093099,0.26959145,83849.0,83848.0,0.006]
[1744771093303,0.11929,83836.0,83835.0,0.00512909]
[1744771093601,0.20720995,83836.0,83835.0,0.00512909]
[1744771093796,0.27030995,83836.0,83835.0,0.00520909]
[1744771094003,0.30120995,83836.0,83835.0,0.00520909]
[1744771094207,0.23900995,83836.0,83835.0,0.12450049]
[1744771094507,0.16044995,83836.0,83835.0,0.12450049]
[1744771094701,0.16044995,83836.0,83835.0,0.19320049]
[1744771095104,0.16044995,83836.0,83835.0,0.04182909]
[1744771095305,0.19134995,83836.0,83835.0,0.16120049]
[1744771095606,0.19134995,83836.0,83835.0,0.16620049]
[1744771095805,0.19134995,83836.0,83835.0,0.01420909]
[1744771096204,0.19134995,83836.0,83835.0,0.01412909]
[1744771096413,0.19134995,83836.0,83835.0,0.01420909]
[1744771096713,0.19134995,83836.0,83835.0,0.01412909]
[1744771096914,0.19134995,83836.0,83835.0,0.01420909]
[1744771097707,0.19134995,83836.0,83835.0,0.01120909]
[1744771097914,0.19134995,83836.0,83835.0,0.01320909]
[1744771099308,0.19134995,83836.0,83835.0,0.01220909]
[1744771099708,0.19134995,83836.0,83835.0,0.01212909]
[1744771099910,0.19134995,83836.0,83835.0,0.01220909]
[1744771100113,0.19134995,83836.0,83835.0,0.00623998]
[1744771101908,0.19134995,83836.0,83835.0,0.00508]
[1744771102108,0.19134995,83836.0,83835.0,0.00708]
[1744771102317,0.19134995,83836.0,83835.0,0.1263714]
[1744771102613,0.16044995,83836.0,83835.0,0.1243714]
[1744771103015,0.16044995,83836.0,83835.0,0.03758]
[1744771103215,0.19694995,83836.0,83835.0,0.03458]
[1744771103517,0.19694995,83836.0,83835.0,0.00208]
[1744771103718,0.19694995,83836.0,83835.0,0.1213714]
[1744771104016,0.19894995,83836.0,83835.0,0.1193714]
[1744771104216,0.19894995,83836.0,83835.0,8e-05]
[1744771104409,0.1192943,83833.0,83832.0,0.151795]
[1744771104904,0.1804943,83833.0,83832.0,0.151795]
[1744771105110,0.18985425,83833.0,83832.0,0.151795]
[1744771105312,0.18985425,83833.0,83832.0,0.151875]
[1744771105515,0.19185425,83833.0,83832.0,0.151875]
[1744771105913,0.19485425,83833.0,83832.0,0.184875]
[1744771106210,0.16375425,83833.0,83832.0,0.184875]
[1744771106618,0.16375425,83833.0,83832.0,0.06558]
[1744771106808,0.16375425,83833.0,83832.0,0.03258]
[1744771107013,0.19485425,83833.0,83832.0,8e-05]
[1744771107319,0.1192985,83830.0,83829.0,0.3608]
[1744771107823,0.1804985,83830.0,83829.0,0.36088]
[1744771108022,0.18985845,83830.0,83829.0,0.36088]
[1744771108624,0.19285845,83830.0,83829.0,0.36088]
[1744771112219,0.19285845,83830.0,83829.0,8e-05]
[1744771113021,0.27137845,83830.0,83829.0,8e-05]
[1744771113220,0.1193056,83825.0,83824.0,0.3608]
[1744771113622,0.1500056,83825.0,83824.0,0.3934]
[1744771113815,0.1829056,83825.0,83824.0,0.42348]
[1744771114025,0.1829056,83825.0,83824.0,0.5427871]
[1744771114225,0.19226555,83825.0,83824.0,0.5427871]
[1744771115026,0.19226555,83825.0,83824.0,0.1819871]
[1744771115214,0.19226555,83825.0,83824.0,0.1193071]
[1744771115417,0.25191845,83825.0,83824.0,0.1193071]
[1744771115617,0.25191845,83825.0,83824.0,0.11333735]
[1744771115815,0.13261285,83825.0,83824.0,0.10438272]
[1744771116125,0.09971285,83825.0,83824.0,0.10438272]
[1744771116718,0.04005995,83825.0,83824.0,0.10438272]
[1744771117119,0.00935995,83825.0,83824.0,0.10438272]
[1744771117322,0.00935995,83825.0,83824.0,0.25438272]
[1744771118621,0.00935995,83825.0,83824.0,0.16348272]
[1744771120429,0.04125995,83825.0,83824.0,0.16348272]
[1744771120623,0.16056555,83825.0,83824.0,0.16348272]
[1744771120828,0.16056555,83825.0,83824.0,0.16356272]
[1744771122028,0.16056555,83825.0,83824.0,0.13486272]
[1744771123025,0.19126555,83825.0,83824.0,0.13486272]
[1744771123728,0.19126555,83825.0,83824.0,0.16356272]
[1744771123923,0.19126555,83825.0,83824.0,0.52436272]
[1744771124429,0.19126555,83825.0,83824.0,0.49566272]
[1744771124629,0.19126555,83825.0,83824.0,0.39128]
[1744771124830,0.19126555,83825.0,83824.0,0.36088]
[1744771125132,0.19126555,83825.0,83824.0,0.3608]
[1744771125325,0.19126555,83825.0,83824.0,0.36088]
[1744771126724,0.19126555,83825.0,83824.0,0.3608]
[1744771126925,0.19126555,83825.0,83824.0,0.36088]
[1744771128332,0.1789685,83822.0,83819.0,0.059657]
[1744771128526,0.1193128,83820.0,83819.0,0.1789698]
[1744771129033,0.1193156,83818.0,83817.0,0.0596584]
[1744771129423,0.19117555,83818.0,83817.0,0.0596584]
[1744771130329,0.19117555,83818.0,83817.0,0.06848621]
[1744771130937,0.19117555,83818.0,83817.0,0.13028621]
[1744771131133,0.19117555,83818.0,83817.0,0.13128621]
[1744771132433,0.15947555,83818.0,83817.0,0.13128621]
[1744771136034,0.04015995,83818.0,83817.0,0.13128621]
[1744771136222,0.15947555,83818.0,83817.0,0.13128621]
[1744771137727,0.15947555,83818.0,83817.0,0.10268621]
[1744771137931,0.22077555,83818.0,83817.0,0.06948621]
[1744771139523,0.22077555,83818.0,83817.0,0.001]
[1744771140632,0.22077555,83818.0,83817.0,0.00108]
[1744771141239,0.23273269,83818.0,83817.0,0.00108]
[1744771142632,0.23273269,83818.0,83817.0,7.517e-05]
[1744771142823,0.1193199,83815.0,83814.0,0.3608]
[1744771143231,0.12867985,83815.0,83814.0,0.3608]
[1744771143430,0.19257985,83815.0,83814.0,0.3608]
[1744771144341,0.19257985,83815.0,83814.0,0.3628]
[1744771144636,0.19257985,83815.0,83814.0,0.3638]
[1744771149742,0.15947985,83815.0,83814.0,0.3638]
[1744771150046,0.15947985,83815.0,83814.0,0.4831213]
[1744771150346,0.19257985,83815.0,83814.0,0.3618]
[1744771151345,0.19257985,83815.0,83814.0,0.4811213]
[1744771151642,0.19357985,83815.0,83814.0,0.4801213]
[1744771153352,0.19357985,83815.0,83814.0,0.3608]
[1744771153648,0.19357985,83815.0,83814.0,0.4801213]
[1744771155047,0.19357985,83815.0,83814.0,0.3608]
[1744771155448,0.19357985,83815.0,83814.0,0.4801213]
[1744771155647,0.19357985,83815.0,83814.0,0.3608]
[1744771156348,0.119327,83810.0,83809.0,0.00523868]
[1744771156750,0.19228695,83810.0,83809.0,0.00513068]
[1744771156951,0.19228695,83810.0,83809.0,0.00521068]
[1744771158353,0.1193284,83809.0,83808.0,0.11856978]
[1744771158552,0.13262345,83810.0,83806.0,0.1503313]
[1744771158753,0.1193313,83807.0,83806.0,0.031]
[1744771159152,0.19109125,83807.0,83806.0,0.031]
[1744771159858,0.19109125,83807.0,83806.0,0.1503327]
[1744771160356,0.19109125,83807.0,83803.0,0.3608]
[1744771160357,0.0596671,83805.0,83803.0,0.3608]
[1744771160559,0.1812355,83804.0,83803.0,0.3608]
[1744771160749,0.19059545,83804.0,83803.0,0.480137]
[1744771161452,0.19059545,83804.0,83803.0,0.481137]
[1744771161958,0.19059545,83804.0,83803.0,0.515937]
[1744771162158,0.19059545,83804.0,83803.0,0.55356784]
[1744771162159,0.15879545,83804.0,83803.0,0.55356784]
[1744771163255,0.03945995,83804.0,83803.0,0.55356784]
[1744771163960,0.15879545,83804.0,83803.0,0.55356784]
[1744771166861,0.18919545,83804.0,83803.0,0.55356784]
[1744771167057,0.18919545,83804.0,83803.0,0.483137]
[1744771167460,0.18919545,83804.0,83803.0,0.483217]
[1744771176083,0.18919545,83804.0,83803.0,0.122417]
[1744771180786,0.18919545,83804.0,83803.0,0.00308]
[1744771181081,0.18919545,83804.0,83803.0,0.122417]
[1744771181481,0.1193208,83815.0,83814.0,0.1789805]
[1744771181673,0.1193208,83815.0,83814.0,0.5397805]
[1744771182073,0.1193208,83815.0,83814.0,0.4204606]
[1744771182280,0.1522208,83815.0,83814.0,0.4204606]
[1744771182781,0.1831208,83815.0,83814.0,0.4204606]
[1744771183285,0.1841208,83815.0,83814.0,0.4204606]
[1744771183881,0.1841208,83815.0,83814.0,0.0596606]
[1744771184082,0.1861208,83815.0,83814.0,0.0596606]
[1744771188596,0.1193227,83813.0,83812.0,0.3608]
[1744771188784,0.1193256,83811.0,83810.0,0.1193262]
[1744771188984,0.1193298,83808.0,83807.0,0.1194383]
[1744771189484,0.1832298,83808.0,83807.0,0.1194383]
[1744771190693,0.1832298,83808.0,83807.0,0.1204383]
[1744771194501,0.1832298,83808.0,83807.0,0.001108]
[1744771194695,0.19316128,83808.0,83807.0,0.001]
[1744771194994,0.19316128,83808.0,83807.0,0.00108]
[1744771195191,0.19316128,83808.0,83807.0,0.00011115]
[1744771195491,0.19316128,83808.0,83807.0,0.00019115]
[1744771195694,0.19316128,83808.0,83807.0,0.11355205]
[1744771196291,0.16226128,83808.0,83807.0,0.14645205]
[1744771196486,0.16226128,83808.0,83807.0,0.17515205]
[1744771197998,0.16226128,83808.0,83807.0,0.14645205]
[1744771198298,0.22766128,83808.0,83807.0,0.14645205]
[1744771199394,0.22766128,83808.0,83807.0,0.17515205]
[1744771200797,0.16226128,83808.0,83807.0,0.17515205]
[1744771200988,0.22676128,83808.0,83807.0,0.14645205]
[1744771201799,0.22713294,83808.0,83807.0,0.14645205]
[1744771203698,0.04330314,83808.0,83807.0,0.17515205]
[1744771203895,0.16263294,83808.0,83807.0,0.17515205]
[1744771205906,0.16263294,83808.0,83807.0,0.0329]
[1744771206201,0.2386697,83806.0,83805.0,0.0596665]
[1744771206800,0.24897284,83806.0,83805.0,0.0596665]
[1744771207206,0.24897284,83806.0,83805.0,0.0606665]
[1744771207697,0.1193355,83804.0,83803.0,0.360908]
[1744771208097,0.1810355,83804.0,83803.0,0.3608]
[1744771208400,0.19133864,83804.0,83803.0,0.36088]
[1744771208997,0.19133864,83804.0,83803.0,0.36188]
[1744771209806,0.19133864,83804.0,83803.0,0.36288]
[1744771210702,0.19133864,83804.0,83803.0,0.482217]
[1744771211306,0.19133864,83804.0,83803.0,0.47624637]
[1744771212408,0.19133864,83804.0,83803.0,0.121417]
[1744771223111,0.04130314,83804.0,83803.0,0.121417]
[1744771223320,0.2122773,83817.0,83811.0,0.0596628]
[1744771223612,0.0596566,83820.0,83819.0,0.1193142]
[1744771224112,0.05983347,83823.0,83822.0,0.1193099]
[1744771224113,0.17914357,83823.0,83822.0,0.1193099]
[1744771224313,0.17914357,83823.0,83822.0,0.4801099]
[1744771224608,0.17914357,83823.0,83822.0,0.5733099]
[1744771225413,0.18114357,83823.0,83822.0,0.5733099]
[1744771226709,0.18614357,83823.0,83822.0,0.5733099]
[1744771228626,0.18614357,83823.0,83822.0,0.4801099]
[1744771229814,0.18414357,83823.0,83822.0,0.4801099]
[1744771232917,0.18414357,83823.0,83822.0,0.5106099]
[1744771233829,0.18414357,83823.0,83822.0,0.4801099]
[1744771235717,0.18414357,83823.0,83822.0,0.5105099]
[1744771235921,0.19372091,83823.0,83822.0,0.5105099]
[1744771236923,0.19372091,83823.0,83822.0,0.5416099]
[1744771237514,0.19372091,83823.0,83822.0,0.1808099]
[1744771243422,0.19372091,83823.0,83822.0,0.1193099]
[1744771243622,0.0596628,83811.0,83810.0,0.00019683]
[1744771244122,0.1789898,83811.0,83810.0,0.119327]
[1744771244323,0.18856714,83811.0,83810.0,0.119407]
[1744771244520,0.18856714,83811.0,83810.0,8e-05]
[1744771244913,0.21886714,83811.0,83810.0,0.119407]
[1744771245121,0.21886714,83811.0,83810.0,0.119327]
[1744771245319,0.21886714,83811.0,83810.0,0.119407]
[1744771246826,0.21986714,83811.0,83810.0,0.119407]
[1744771248129,0.21986714,83811.0,83810.0,0.151807]
[1744771249534,0.21986714,83811.0,83810.0,0.512607]
[1744771250229,0.21986714,83811.0,83810.0,0.480207]
[1744771250434,0.21986714,83811.0,83810.0,0.119407]
[1744771251235,0.23148596,83811.0,83810.0,0.119407]
[1744771251935,0.23148596,83811.0,83810.0,8e-05]
[1744771254130,0.23148596,83811.0,83804.0,0.0001458]
[1744771254131,0.1193341,83805.0,83804.0,0.1193343]
[1744771254530,0.2152341,83805.0,83804.0,0.1193343]
[1744771254738,0.22481144,83805.0,83804.0,0.1193343]
[1744771255433,0.22481144,83805.0,83804.0,0.1203343]
[1744771255936,0.22481144,83805.0,83804.0,0.1544343]
[1744771258333,0.22481144,83805.0,83804.0,0.1866343]
[1744771261138,0.22481144,83805.0,83804.0,0.1213343]
[1744771263439,0.22481144,83805.0,83804.0,0.002]
[1744771264033,0.22481144,83805.0,83804.0,0.1214155]
[1744771264937,0.22481144,83805.0,83804.0,0.1526155]
[1744771270147,0.22481144,83805.0,83804.0,0.00208]
[1744771272741,0.22481144,83805.0,83804.0,0.002]
[1744771272941,0.22481144,83805.0,83804.0,0.00208]
[1744771273137,0.22481144,83805.0,83804.0,0.002]
[1744771273341,0.22481144,83805.0,83804.0,0.00208]
[1744771274744,0.1193526,83792.0,83791.0,0.3608]
[1744771275347,0.19152994,83792.0,83791.0,0.3608]
[1744771275541,0.19152994,83792.0,83791.0,0.36955272]
[1744771275735,0.19152994,83792.0,83791.0,0.3608]
[1744771275941,0.19152994,83792.0,83787.0,0.05987663]
[1744771275942,0.1193583,83788.0,83787.0,0.00019683]
[1744771276149,0.1193626,83785.0,83784.0,0.3608]
[1744771276548,0.1823626,83785.0,83784.0,0.480164]
[1744771277255,0.19193994,83785.0,83784.0,0.3697856]
[1744771277841,0.19193994,83785.0,83784.0,0.3698656]
[1744771278444,0.19193994,83785.0,83784.0,0.3748656]
[1744771278642,0.19193994,83785.0,83784.0,0.36588]
[1744771278848,0.19193994,83785.0,83784.0,0.36388]
[1744771279044,0.20373706,83785.0,83784.0,0.36688]
[1744771279636,0.20373706,83785.0,83784.0,0.36488]
[1744771280044,0.15913994,83785.0,83784.0,0.484244]
[1744771280249,0.15913994,83785.0,83784.0,0.544864]
[1744771280445,0.15913994,83785.0,83784.0,0.544944]
[1744771280644,0.19113994,83785.0,83784.0,0.544944]
[1744771281046,0.19113994,83785.0,83784.0,0.42558]
[1744771281345,0.20321715,83785.0,83784.0,0.42558]
[1744771282247,0.20321715,83785.0,83784.0,0.544944]
[1744771286048,0.19113994,83785.0,83784.0,0.544944]
[1744771289845,0.19113994,83785.0,83784.0,0.514744]
[1744771291141,0.19113994,83785.0,83784.0,0.36488]
[1744771292349,0.19113994,83785.0,83784.0,0.3648]
[1744771292552,0.19113994,83785.0,83784.0,0.36488]
[1744771293545,0.19113994,83785.0,83784.0,0.36288]
[1744771294551,0.19113994,83785.0,83784.0,0.482244]
[1744771295052,0.19113994,83785.0,83784.0,0.36288]
[1744771295251,0.19113994,83785.0,83784.0,0.00208]
[1744771295643,0.19113994,83785.0,83784.0,0.121444]
[1744771295842,0.19113994,83785.0,83784.0,0.00208]
[1744771296654,0.19113994,83785.0,83784.0,0.002]
[1744771296852,0.19113994,83785.0,83784.0,0.00208]
[1744771299044,0.19113994,83785.0,83784.0,0.03458]
[1744771299244,0.19113994,83785.0,83784.0,0.06768]
[1744771299444,0.19113994,83785.0,83784.0,0.187044]
[1744771299650,0.19113994,83785.0,83784.0,0.06768]
[1744771300151,0.19113994,83785.0,83784.0,0.00208]
[1744771301348,0.1193683,83781.0,83780.0,0.3608]
[1744771301749,0.19004564,83781.0,83780.0,0.47419725]
[1744771302057,0.19004564,83781.0,83780.0,0.35490755]
[1744771302360,0.19004564,83781.0,83780.0,0.47427725]
[1744771302660,0.19004564,83781.0,83780.0,0.47627725]
[1744771303758,0.19004564,83781.0,83780.0,0.47727725]
[1744771303952,0.19004564,83781.0,83780.0,0.35790755]
[1744771304653,0.19004564,83781.0,83780.0,0.47727725]
[1744771305262,0.19004564,83781.0,83780.0,0.54137725]
[1744771305559,0.19004564,83781.0,83780.0,0.57397725]
[1744771307860,0.19004564,83781.0,83780.0,0.2191497]
[1744771308254,0.19004564,83781.0,83780.0,0.2181497]
[1744771309163,0.19004564,83781.0,83780.0,0.2181508]
[1744771310264,0.19004564,83781.0,83780.0,0.1855508]
[1744771315066,0.19004564,83781.0,83780.0,0.1854708]
[1744771315261,0.19004564,83781.0,83780.0,0.17659222]
[1744771316960,0.19004564,83781.0,83780.0,0.17061984]
[1744771320773,0.19004564,83781.0,83780.0,0.1521708]
[1744771325675,0.19004564,83781.0,83780.0,0.1213708]
[1744771332198,0.19004564,83781.0,83780.0,0.11539841]
[1744771332899,0.19004564,83781.0,83780.0,0.10643983]
[1744771336002,0.15924564,83781.0,83780.0,0.10643983]
[1744771336204,0.15924564,83781.0,83780.0,0.20053983]
[1744771337198,0.03987734,83781.0,83780.0,0.20053983]
[1744771337398,0.15924644,83781.0,83780.0,0.20053983]
[1744771338200,0.03987734,83781.0,83780.0,0.20053983]
[1744771338405,0.1511662,83783.0,83782.0,0.1193676]
[1744771339495,0.1193705,83780.0,83779.0,0.4204869]
[1744771339695,0.1193705,83780.0,83779.0,0.3608]
[1744771339896,0.1812705,83780.0,83779.0,0.36088]
[1744771340097,0.1812705,83780.0,83779.0,0.3608]
[1744771340300,0.1812705,83780.0,83779.0,0.36088]
[1744771341007,0.1812705,83780.0,83779.0,0.36188]
[1744771341399,0.1812705,83780.0,83779.0,0.36288]
[1744771341592,0.19295875,83780.0,83779.0,0.36288]
[1744771342301,0.19295875,83780.0,83779.0,0.3628]
[1744771342505,0.19295875,83780.0,83779.0,0.36288]
[1744771343105,0.1812705,83780.0,83779.0,0.4822519]
[1744771343807,0.1822705,83780.0,83779.0,0.4812519]
[1744771344508,0.1515705,83780.0,83779.0,0.4812519]
[1744771345010,0.1535705,83780.0,83779.0,0.4802519]
[1744771347313,0.1535705,83780.0,83779.0,0.8410519]
[1744771349199,0.1535705,83780.0,83779.0,0.8733519]
[1744771351014,0.16291071,83780.0,83779.0,0.8733519]
[1744771351216,0.01234021,83780.0,83779.0,0.8733519]
[1744771351510,0.01234021,83780.0,83779.0,1.0333519]
[1744771352808,0.0306,83785.0,83784.0,0.119365]
[1744771353013,0.0596796,83789.0,83788.0,0.1193593]
[1744771353014,0.2387211,83789.0,83788.0,0.1193593]
[1744771353209,0.2387211,83789.0,83788.0,0.4801593]
[1744771353514,0.2387211,83789.0,83788.0,0.5131593]
[1744771353716,0.0596796,83789.0,83788.0,0.5131593]
[1744771354405,0.0646796,83789.0,83788.0,0.5131593]
[1744771354916,0.0947796,83789.0,83788.0,0.5131593]
[1744771355817,0.0947796,83789.0,83788.0,0.5459593]
[1744771356121,0.0967796,83789.0,83788.0,0.5459593]
[1744771356716,0.0957796,83789.0,83788.0,0.5459593]
[1744771357320,0.1583796,83789.0,83788.0,0.5459593]
[1744771361624,0.1583796,83789.0,83788.0,0.1851593]
[1744771361811,0.1583796,83789.0,83788.0,0.5459593]
[1744771365226,0.16780286,83789.0,83788.0,0.4801593]
[1744771370222,0.16780286,83789.0,83788.0,0.5426593]
[1744771371329,0.04552326,83789.0,83788.0,0.5426593]
[1744771371627,0.04552326,83789.0,83788.0,0.5730593]
[1744771372730,0.04552326,83789.0,83788.0,0.5830593]
[1744771373321,0.04552326,83789.0,83788.0,1.6330593]
[1744771375031,0.04352326,83789.0,83788.0,1.2732593]
[1744771375231,0.04352326,83789.0,83788.0,1.9948593]
[1744771375539,0.04252326,83789.0,83788.0,1.9958593]
[1744771377337,0.1193503,83794.0,83793.0,0.1193512]
[1744771377733,0.1193503,83794.0,83793.0,0.1832512]
[1744771378742,0.1519503,83794.0,83793.0,0.1832512]
[1744771381644,0.1823503,83794.0,83793.0,0.1832512]
[1744771383249,0.1823503,83794.0,83793.0,0.1521512]
[1744771384648,0.1833503,83794.0,83793.0,0.1521512]
[1744771388752,0.1833503,83794.0,83793.0,1.2021512]
[1744771389056,0.064,83794.0,83793.0,1.2021512]
[1744771389357,0.064,83794.0,83793.0,1.2341512]
[1744771389657,0.1833498,83794.0,83793.0,1.2341512]
[1744771390057,0.19274786,83794.0,83793.0,1.5949512]
[1744771390956,0.19274786,83794.0,83793.0,1.5629512]
[1744771398468,0.19274786,83794.0,83793.0,1.2021512]
[1744771399668,0.19274786,83794.0,83793.0,1.1693512]
[1744771400669,0.19274786,83794.0,83793.0,0.1193512]
[1744771403672,0.0596771,83791.0,83787.0,0.0596797]
[1744771403872,0.0596799,83788.0,83787.0,0.1790352]
[1744771404066,0.06907796,83788.0,83787.0,0.1791152]
[1744771404764,0.06907796,83788.0,83787.0,0.2387941]
[1744771405368,0.13197796,83788.0,83787.0,0.2387941]
[1744771406468,0.13297796,83788.0,83787.0,0.2387941]
[1744771406669,0.13297796,83788.0,83787.0,0.2397941]
[1744771407270,0.07329806,83788.0,83787.0,0.2397941]
[1744771407473,0.04339806,83788.0,83787.0,0.5995941]
[1744771407774,0.04339806,83788.0,83787.0,0.8241941]
[1744771407971,0.0596716,83799.0,83793.0,0.0596755]
[1744771408273,0.1790175,83799.0,83798.0,0.3608]
[1744771409066,0.1820175,83799.0,83798.0,0.3608]
[1744771409671,0.1820175,83799.0,83798.0,0.4801441]
[1744771410273,0.1870175,83799.0,83798.0,0.5436441]
[1744771411467,0.2847175,83799.0,83798.0,0.5436441]
[1744771411671,0.2528175,83799.0,83798.0,0.5436441]
[1744771413476,0.2528175,83799.0,83798.0,0.5115441]
[1744771413677,0.2528175,83799.0,83798.0,0.1507441]
[1744771413875,0.0738,83799.0,83788.0,0.1193498]
[1744771414078,0.1193512,83793.0,83792.0,0.0596763]
[1744771414477,0.2140512,83793.0,83792.0,0.0596763]
[1744771415780,0.2140512,83793.0,83792.0,0.1790275]
[1744771416291,0.2160512,83793.0,83792.0,0.1790275]
[1744771416886,0.2190512,83793.0,83792.0,0.1790275]
[1744771420985,0.22866911,83793.0,83792.0,0.1790275]
[1744771423379,0.22866911,83793.0,83792.0,0.2119275]
[1744771432681,0.22866911,83793.0,83788.0,8e-05]
[1744771432682,0.1193569,83789.0,83788.0,8e-05]
[1744771432890,0.1193569,83789.0,83788.0,0.1194383]
[1744771433094,0.1825569,83789.0,83788.0,0.1193583]
[1744771433292,0.1825569,83789.0,83788.0,0.1194383]
[1744771433486,0.1825569,83789.0,83788.0,0.1505383]
[1744771433692,0.19217481,83789.0,83788.0,0.1505383]
[1744771433997,0.19517481,83789.0,83788.0,0.1505383]
[1744771436501,0.19317481,83789.0,83788.0,0.1505383]
[1744771436694,0.19517481,83789.0,83788.0,0.1832383]
[1744771439301,0.16487481,83789.0,83788.0,0.1832383]
[1744771440402,0.01261791,83789.0,83788.0,0.3332383]
[1744771440805,0.13197481,83789.0,83788.0,0.5440383]
[1744771441103,0.13197481,83789.0,83788.0,0.5439583]
[1744771441301,0.13197481,83789.0,83788.0,0.5440383]
[1744771442807,0.01261791,83789.0,83788.0,0.5440383]
[1744771444405,0.01261791,83789.0,83788.0,0.7140383]
[1744771446398,0.13197481,83789.0,83788.0,0.3532383]
[1744771446592,0.13197481,83789.0,83788.0,0.1832383]
[1744771446797,0.16327481,83789.0,83788.0,0.5440383]
[1744771447211,0.16327481,83789.0,83788.0,0.1832383]
[1744771447507,0.16327481,83789.0,83788.0,0.5440383]
[1744771449407,0.16327481,83789.0,83788.0,0.1832383]
[1744771449815,0.16327481,83789.0,83788.0,0.5440383]
[1744771450307,0.16327481,83789.0,83788.0,0.53806681]
[1744771450509,0.16327481,83789.0,83788.0,0.17726681]
[1744771450998,0.19357481,83789.0,83788.0,0.17726681]
[1744771451200,0.19357481,83789.0,83788.0,0.17718681]
[1744771451404,0.19357481,83789.0,83788.0,0.17726681]
[1744771452807,0.19357481,83789.0,83788.0,0.14616681]
[1744771457005,0.19357481,83789.0,83788.0,0.17856681]
[1744771458113,0.16327481,83789.0,83788.0,0.17856681]
[1744771458312,0.16327481,83789.0,83788.0,0.21026681]
[1744771463498,0.19427481,83789.0,83788.0,0.21026681]
[1744771464308,0.19427481,83789.0,83788.0,0.17856681]
[1744771466211,0.19427481,83789.0,83788.0,0.1725952]
[1744771471917,0.16327481,83789.0,83788.0,0.1725952]
[1744771481238,0.19627481,83789.0,83788.0,0.1725952]
[1744771483539,0.19627481,83789.0,83788.0,0.1194383]
[1744771483835,0.1193655,83783.0,83782.0,0.0001458]
[1744771484025,0.4801655,83783.0,83782.0,0.0001458]
[1744771484228,0.1193726,83778.0,83777.0,0.0302]
[1744771484433,0.1193726,83778.0,83777.0,0.030308]
[1744771484636,0.12899051,83778.0,83777.0,0.0302]
[1744771484924,0.12899051,83778.0,83777.0,0.149654]
[1744771485328,0.19229051,83778.0,83777.0,0.181854]
[1744771485838,0.19229051,83778.0,83777.0,0.182854]
[1744771486344,0.19229051,83778.0,83777.0,0.183854]
[1744771486539,0.19229051,83778.0,83777.0,0.182854]
[1744771486839,0.19329051,83778.0,83777.0,0.181854]
[1744771489839,0.19329051,83778.0,83777.0,0.119454]
[1744771490638,0.19329051,83778.0,83777.0,0.150454]
[1744771504551,0.19329051,83778.0,83777.0,0.03108]
[1744771504758,0.1193769,83775.0,83774.0,0.000108]
[1744771504950,0.12899481,83775.0,83774.0,0.000108]
[1744771505151,0.22429481,83775.0,83774.0,0.1194863]